bitfinex-derivatives/quotes_SOLF0:USTF0_20240924
["timestamp","ask_amount","ask_price","bid_price","bid_amount"]
[1727168390893,4.83455529,148.42,148.4,3.3692]
[1727168391097,12.6787,148.43,148.4,3.3692]
[1727168391390,4.83399583,148.42,148.4,3.3692]
[1727168391591,12.6787,148.43,148.4,3.3692]
[1727168391793,8.2042523,148.42,148.39,3.3695]
[1727168391989,9.31,148.42,148.39,3.3695]
[1727168392401,4.83625849,148.41,148.4,3.3694]
[1727168393695,4.83625849,148.41,148.4,12.6794]
[1727168393900,3.39253218,148.44,148.4,12.6794]
[1727168394096,4.83700026,148.43,148.41,3.3691]
[1727168394297,14.14700026,148.42,148.36,2.8051]
[1727168394598,9.31,148.4,148.37,3.3699]
[1727168394805,4.83901375,148.39,148.37,3.3699]
[1727168395000,9.31,148.4,148.36,2.8051]
[1727168395200,4.83803982,148.39,148.36,6.1752]
[1727168395398,12.6795,148.4,148.36,6.1752]
[1727168395595,4.83918012,148.39,148.36,6.1752]
[1727168395798,12.6795,148.4,148.36,6.1752]
[1727168395994,9.31,148.38,148.36,6.1752]
[1727168396199,9.31,148.38,148.34,1.3167]
[1727168397105,4.83974091,148.37,148.34,1.3167]
[1727168397299,9.31,148.38,148.36,3.3703]
[1727168398296,9.31,148.39,148.37,3.37]
[1727168398705,12.60737019,148.41,148.37,3.37]
[1727168398904,4.83728179,148.4,148.38,3.3698]
[1727168399099,4.83728179,148.39,148.37,9.31]
[1727168399303,3.3693,148.41,148.37,9.31]
[1727168399597,9.31,148.38,148.3,2.7185]
[1727168399803,9.31,148.38,148.33,9.31]
[1727168400102,9.31,148.38,148.35,3.3704]
[1727168400503,12.6798,148.39,148.34,9.31]
[1727168400712,4.78532677,148.44,148.36,9.31]
[1727168401007,3.3693,148.41,148.37,3.3699]
[1727168401712,20.22,148.56,148.4,9.31]
[1727168402012,9.31,148.5,148.46,9.31]
[1727168402311,4.83408597,148.49,148.46,9.31]
[1727168402607,9.31,148.47,148.37,4.0422]
[1727168402803,9.31,148.47,148.44,12.6785]
[1727168402999,9.31,148.49,148.45,9.31]
[1727168403405,12.6773,148.5,148.46,12.678]
[1727168404005,12.6774,148.49,148.45,3.3682]
[1727168404207,1.3314,148.52,148.44,9.31]
[1727168404412,12.67704422,148.51,148.46,9.31]
[1727168405407,16.04414422,148.51,148.47,3.3678]
[1727168405613,12.6771,148.51,148.47,3.3678]
[1727168405814,3.40184968,148.53,148.48,9.31]
[1727168406009,12.63164758,148.53,148.48,9.31]
[1727168406212,9.31,148.53,148.48,9.31]
[1727168406512,9.31,148.55,148.52,3.3665]
[1727168406716,3.35534594,148.56,148.52,9.31]
[1727168406905,3.3658,148.56,148.52,12.6765]
[1727168407109,10.6063,148.57,148.52,9.31]
[1727168407508,2.6501,148.63,148.54,3.3662]
[1727168407812,9.31,148.58,148.54,3.3662]
[1727168408001,9.31,148.58,148.53,9.31]
[1727168408805,3.3655,148.57,148.53,12.6763]
[1727168409006,9.31,148.58,148.53,9.31]
[1727168409613,9.31,148.57,148.52,9.31]
[1727168409813,9.31,148.54,148.49,9.31]
[1727168410007,12.6764,148.54,148.49,9.31]
[1727168410512,9.31,148.51,148.47,9.31]
[1727168410714,12.73123519,148.53,148.48,9.31]
[1727168410904,9.31,148.53,148.48,9.31]
[1727168411402,9.31,148.53,148.48,12.6774]
[1727168411815,14.98070343,148.61,148.48,9.31]
[1727168412011,1.2963,148.62,148.49,3.3673]
[1727168412012,9.31,148.53,148.49,3.3673]
[1727168412707,13.11624049,148.6,148.5,9.31]
[1727168412905,12.676,148.55,148.5,9.31]
[1727168413106,9.31,148.55,148.51,3.3667]
[1727168413505,9.31,148.55,148.5,9.31]
[1727168413707,9.31,148.55,148.51,3.3668]
[1727168414317,12.6761,148.55,148.51,3.3668]
[1727168414911,9.31,148.52,148.44,1.3739]
[1727168415112,9.31,148.52,148.47,9.31]
[1727168415616,12.6767,148.52,148.48,3.3674]
[1727168416118,9.31,148.53,148.48,9.31]
[1727168416416,9.31,148.54,148.5,9.31]
[1727168416616,9.31,148.54,148.5,12.6771]
[1727168417216,12.6764,148.54,148.5,12.6771]
[1727168417619,9.31,148.53,148.48,9.31]
[1727168417811,9.31,148.51,148.47,9.31]
[1727168418218,9.31,148.51,148.47,12.6778]
[1727168419224,3.34478577,148.53,148.48,3.3675]
[1727168419428,9.31,148.52,148.48,12.6775]
[1727168419828,9.31,148.5,148.46,3.3679]
[1727168420448,12.6773,148.5,148.46,3.3679]
[1727168420628,9.31,148.49,148.43,2.6365]
[1727168420826,3.368,148.47,148.43,2.6365]
[1727168421032,12.678,148.47,148.43,2.6365]
[1727168421223,12.678,148.47,148.43,6.0051]
[1727168422024,9.31,148.44,148.37,9.31]
[1727168422220,9.31,148.43,148.38,9.31]
[1727168422419,12.6788,148.43,148.38,12.6797]
[1727168422925,12.6788,148.43,148.38,9.31]
[1727168422926,9.31,148.43,148.38,9.31]
[1727168423122,3.369,148.42,148.38,9.31]
[1727168423424,9.31,148.43,148.38,9.31]
[1727168423621,3.9843,148.48,148.42,9.31]
[1727168423923,10.611,148.48,148.42,9.31]
[1727168424130,3.3682,148.46,148.42,9.31]
[1727168424624,3.3682,148.46,148.4,14.55]
[1727168424824,3.3682,148.46,148.32,14.55]
[1727168424825,14.55,148.47,148.38,14.55]
[1727168425719,14.55,148.47,148.39,2.5893]
[1727168425925,1.301,148.48,148.4,14.55]
[1727168426425,3.3682,148.46,148.41,3.369]
[1727168426827,3.3681,148.46,148.41,3.369]
[1727168427623,3.3683,148.45,148.41,3.369]
[1727168428322,14.55,148.47,148.39,17.1393]
[1727168428519,14.55,148.46,148.39,2.5893]
[1727168428730,3.3688,148.43,148.39,5.9588]
[1727168429624,3.3692,148.41,148.39,2.5893]
[1727168430018,14.55,148.46,148.39,2.5893]
[1727168430925,14.55,148.46,148.31,82.1503]
[1727168430926,14.55,148.42,148.33,14.55]
[1727168431530,14.55,148.4,148.32,2.7244]
[1727168431730,17.87737934,148.4,148.32,2.7244]
[1727168431930,14.55,148.42,148.33,14.55]
[1727168432432,14.55,148.44,148.35,14.55]
[1727168433327,3.3693,148.41,148.37,3.3699]
[1727168433526,14.55,148.44,148.35,14.55]
[1727168433921,1.4099,148.47,148.36,14.55]
[1727168434122,1.301,148.48,148.38,14.55]
[1727168434332,1.301,148.48,148.41,14.55]
[1727168435028,3.368,148.47,148.43,3.3685]
[1727168436435,3.3681,148.46,148.43,3.3685]
[1727168436630,14.55,148.49,148.4,1.4066]
[1727168436837,14.55,148.47,148.4,1.4066]
[1727168437035,3.3684,148.45,148.4,1.4066]
[1727168438142,3.3684,148.45,148.41,3.3691]
[1727168438643,3.3686,148.44,148.4,3.3693]
[1727168438939,14.55,148.47,148.4,3.3693]
[1727168439140,3.3686,148.44,148.4,3.3693]
[1727168439844,3.3684,148.45,148.41,3.3691]
[1727168442740,3.3686,148.44,148.4,3.3692]
[1727168442933,3.3686,148.44,148.39,17.2679]
[1727168443141,14.55,148.47,148.39,17.2679]
[1727168443341,3.3684,148.45,148.41,3.369]
[1727168443537,3.3684,148.45,148.39,17.2679]
[1727168443538,16.35495472,148.54,148.44,14.55]
[1727168443748,34.19267309,148.54,148.44,14.55]
[1727168443946,3.3669,148.51,148.46,3.3679]
[1727168444135,3.3669,148.51,148.44,14.55]
[1727168444536,3.3669,148.51,148.45,2.7089]
[1727168444738,3.3669,148.51,148.47,3.3677]
[1727168445245,3.3672,148.5,148.46,3.368]
[1727168445840,19.19801837,148.54,148.45,2.7089]
[1727168446444,19.19801837,148.54,148.46,3.368]
[1727168446649,19.19801837,148.54,148.45,2.7089]
[1727168446948,3.3665,148.53,148.49,3.3672]
[1727168447948,3.3665,148.53,148.48,3.3675]
[1727168448144,3.3667,148.52,148.48,3.3675]
[1727168450050,3.3669,148.51,148.47,3.3677]
[1727168451953,15.9103,148.54,148.46,3.3679]
[1727168452541,15.9103,148.54,148.45,17.2589]
[1727168452542,3.367,148.51,148.47,3.3678]
[1727168454449,1.3603,148.54,148.46,14.55]
[1727168454952,3.3665,148.53,148.49,3.3671]
[1727168456656,1.3603,148.54,148.49,3.3671]
[1727168456657,3.3667,148.52,148.49,3.3671]
[1727168457058,3.367,148.51,148.48,3.3675]
[1727168459249,3.3668,148.52,148.48,3.3675]
[1727168459451,3.3668,148.52,148.49,3.3673]
[1727168459656,1.3603,148.54,148.49,3.3673]
[1727168460054,3.3665,148.53,148.5,3.3671]
[1727168460362,82.31493709,148.55,148.48,14.55]
[1727168460554,3.3665,148.53,148.49,3.3672]
[1727168460858,82.31493709,148.55,148.48,14.55]
[1727168461059,3.3669,148.51,148.48,3.3675]
[1727168463253,3.3669,148.51,148.47,3.3677]
[1727168465957,14.55,148.54,148.45,2.7089]
[1727168466158,14.55,148.52,148.45,2.7089]
[1727168466559,14.55,148.52,148.45,6.077]
[1727168467156,3.3676,148.49,148.45,6.077]
[1727168468362,14.55,148.54,148.45,2.7089]
[1727168468562,83.72273709,148.55,148.46,14.55]
[1727168468759,14.99630403,148.54,148.48,3.3675]
[1727168469558,3.367,148.51,148.48,3.3675]
[1727168474367,83.72273709,148.55,148.48,14.55]
[1727168474866,3.3668,148.52,148.49,3.3672]
[1727168475264,98.27273709,148.55,148.45,2.7089]
[1727168475462,3.367,148.51,148.48,3.3675]
[1727168477469,3.3671,148.5,148.47,3.3677]
[1727168480275,83.72273709,148.55,148.45,6.15069466]
[1727168480472,9.32,148.54,148.49,9.32]
[1727168480862,4.76504757,148.55,148.45,5.99878143]
[1727168481067,10.6929,148.57,148.52,9.32]
[1727168481370,3.3664,148.54,148.51,9.32]
[1727168481765,9.32,148.55,148.5,3.367]
[1727168481962,9.32,148.55,148.5,9.32]
[1727168482362,3.3666,148.53,148.5,3.367]
[1727168482768,3.34579628,148.56,148.48,14.56]
[1727168482975,3.3663,148.54,148.51,3.3668]
[1727168485269,3.366,148.55,148.53,3.3664]
[1727168485576,3.3775682,148.58,148.52,14.56]
[1727168485773,14.56,148.59,148.5,14.56]
[1727168486073,3.3661,148.55,148.52,3.3666]
[1727168486775,3.3658,148.56,148.53,3.3664]
[1727168486976,3.3658,148.56,148.5,14.56]
[1727168487574,3.3658,148.56,148.52,3.3665]
[1727168488571,18.33292875,148.58,148.51,3.3668]
[1727168489174,18.33292875,148.58,148.5,14.56]
[1727168489776,3.3659,148.56,148.52,3.3665]
[1727168491180,3.3661,148.55,148.52,3.3665]
[1727168493180,14.56,148.55,148.46,15.9212]
[1727168493582,3.3668,148.52,148.49,3.3673]
[1727168493777,14.56,148.55,148.46,15.9212]
[1727168494480,14.56,148.55,148.48,3.3675]
[1727168494689,14.56,148.53,148.45,2.7089]
[1727168494982,14.56,148.51,148.45,2.7089]
[1727168495185,3.3678,148.48,148.44,3.3685]
[1727168495783,3.40507949,148.5,148.44,3.3685]
[1727168495977,14.56,148.51,148.44,3.3685]
[1727168496676,3.33670169,148.5,148.44,3.3685]
[1727168496985,3.3678,148.48,148.44,3.3685]
[1727168502284,3.3678,148.48,148.45,9.31]
[1727168503085,3.3678,148.47,148.45,9.31]
[1727168503587,3.3677,148.48,148.45,12.6782]
[1727168504687,3.3677,148.48,148.44,3.3683]
[1727168504882,3.3677,148.48,148.45,9.31]
[1727168505686,3.3677,148.48,148.45,12.6782]
[1727168506279,12.6774,148.49,148.46,3.368]
[1727168506487,9.31,148.52,148.48,9.31]
[1727168506978,1.3953,148.54,148.5,9.31]
[1727168507178,37.52327135,148.55,148.5,9.31]
[1727168507391,3.3667,148.52,148.5,9.31]
[1727168507690,15.04425201,148.54,148.41,2.6173]
[1727168507691,9.31,148.53,148.48,9.31]
[1727168507891,9.31,148.51,148.47,3.3677]
[1727168508088,9.31,148.51,148.46,9.31]
[1727168508588,3.3672,148.5,148.48,3.3676]
[1727168508789,3.3672,148.5,148.48,12.6776]
[1727168508983,3.29694782,148.52,148.48,12.6776]
[1727168509182,3.3671,148.51,148.48,12.6776]
[1727168511584,3.3676,148.48,148.42,3.32793987]
[1727168511785,3.31075949,148.53,148.44,9.31]
[1727168511786,9.31,148.5,148.44,9.31]
[1727168512386,9.31,148.46,148.41,2.6173]
[1727168512581,9.31,148.46,148.41,11.9273]
[1727168513088,10.6929,148.49,148.44,9.31]
[1727168513490,3.3679,148.47,148.44,9.31]
[1727168514491,14.07082304,148.49,148.44,9.31]
[1727168514692,10.6929,148.49,148.44,9.31]
[1727168514996,3.3679,148.47,148.43,3.3686]
[1727168515491,3.3679,148.47,148.43,12.6786]
[1727168516995,3.3679,148.47,148.43,3.3686]
[1727168517290,9.31,148.45,148.38,1.2954]
[1727168517491,9.31,148.44,148.39,9.31]
[1727168517798,3.3689,148.43,148.39,12.6796]
[1727168518396,9.31,148.41,148.34,2.6775]
[1727168518696,9.31,148.41,148.37,90.15]
[1727168518995,9.31,148.41,148.37,9.31]
[1727168519189,9.31,148.42,148.38,9.31]
[1727168519794,12.679,148.42,148.38,12.6798]
[1727168519998,9.31,148.42,148.38,9.31]
[1727168520296,3.3693,148.41,148.37,3.3699]
[1727168520500,14.56,148.44,148.35,14.56]
[1727168520703,15.9501,148.48,148.34,2.6775]
[1727168520997,14.56,148.4,148.34,2.6775]
[1727168521699,3.37,148.38,148.34,6.0482]
[1727168522089,14.56,148.43,148.34,17.2375]
[1727168522290,3.37467978,148.42,148.34,17.2375]
[1727168522493,3.39254415,148.41,148.34,17.2375]
[1727168522701,14.56,148.43,148.34,17.2375]
[1727168522991,1.3901,148.48,148.35,14.56]
[1727168523191,14.56,148.45,148.35,14.56]
[1727168523598,3.3691,148.42,148.38,3.3697]
[1727168525493,3.3691,148.42,148.39,3.3696]
[1727168525801,3.3688,148.43,148.35,14.56]
[1727168526300,3.3688,148.43,148.37,14.56]
[1727168526689,3.3688,148.43,148.39,3.3695]
[1727168527094,3.3685,148.44,148.37,14.56]
[1727168527300,3.3685,148.44,148.41,3.3691]
[1727168528000,3.3684,148.45,148.41,3.3691]
[1727168528202,1.3901,148.48,148.42,3.3689]
[1727168528503,3.368,148.47,148.41,14.56]
[1727168529403,3.368,148.47,148.43,3.3686]
[1727168531298,14.56,148.47,148.33,80.86]
[1727168531500,1.3282,148.48,148.36,14.56]
[1727168531802,3.3688,148.43,148.39,3.3695]
[1727168531998,14.56,148.44,148.36,14.56]
[1727168533205,14.56,148.42,148.34,1.3118]
[1727168533406,15.8882,148.48,148.33,83.5927]
[1727168533407,14.56,148.4,148.33,83.5927]
[1727168534313,3.35018537,148.41,148.33,98.1527]
[1727168534606,14.56,148.42,148.33,98.1527]
[1727168534801,14.56,148.44,148.35,14.56]
[1727168535007,3.3693,148.41,148.37,3.3699]
[1727168535208,14.56,148.44,148.35,14.56]
[1727168535403,14.56,148.43,148.33,98.1527]
[1727168535808,14.56,148.44,148.35,14.56]
[1727168536510,14.56,148.44,148.37,3.37]
[1727168537111,3.3693,148.41,148.37,3.37]
[1727168537611,3.3693,148.41,148.38,3.3698]
[1727168541319,3.3694,148.4,148.38,3.3698]
[1727168541824,3.3692,148.41,148.38,3.3698]
[1727168542319,12.6892,148.41,148.38,3.3698]
[1727168543812,1.3282,148.48,148.4,9.32]
[1727168544020,9.32,148.45,148.4,9.32]
[1727168544412,3.3687,148.44,148.41,3.3691]
[1727168544920,3.3687,148.43,148.4,12.6893]
[1727168545119,3.3687,148.43,148.4,3.3693]
[1727168545713,9.32,148.44,148.39,9.32]
[1727168546015,3.369,148.42,148.39,12.6895]
[1727168546820,3.369,148.42,148.39,3.3695]
[1727168548116,9.32,148.44,148.38,3.3698]
[1727168548321,9.32,148.42,148.38,12.6898]
[1727168548521,9.32,148.42,148.38,9.32]
[1727168548822,12.6891,148.42,148.38,12.6898]
[1727168549517,9.32,148.45,148.39,9.32]
[1727168549822,9.32,148.45,148.41,9.32]
[1727168550020,3.3687,148.44,148.41,9.32]
[1727168550419,9.32,148.45,148.41,9.32]
[1727168550618,3.3687,148.44,148.4,12.6893]
[1727168551013,9.32,148.44,148.4,9.32]
[1727168551226,9.32,148.44,148.38,9.32]
[1727168552321,3.3688,148.43,148.39,9.32]
[1727168552623,9.32,148.43,148.38,9.32]
[1727168553223,9.32,148.41,148.36,9.32]
[1727168553622,12.6893,148.41,148.37,3.3699]
[1727168554712,12.6894,148.4,148.37,3.3699]
[1727168556119,3.3696,148.39,148.33,2.7327]
[1727168556422,3.3696,148.39,148.35,9.32]
[1727168556914,9.32,148.39,148.34,9.32]
[1727168557522,3.3699,148.38,148.35,3.3704]
[1727168558624,12.6897,148.39,148.35,3.3704]
[1727168559422,12.6897,148.39,148.35,12.6904]
[1727168561123,3.37,148.38,148.35,9.32]
[1727168561324,3.37,148.38,148.34,3.3707]
[1727168562626,3.37,148.38,148.35,12.6905]
[1727168563019,3.37,148.38,148.33,2.7327]
[1727168563220,3.37,148.38,148.34,9.32]
[1727168563519,3.37,148.38,148.34,12.6907]
[1727168565925,12.6897,148.39,148.35,3.3705]
[1727168566134,3.3697,148.39,148.35,3.3705]
[1727168566337,3.3697,148.39,148.34,9.32]
[1727168566526,3.3697,148.39,148.35,3.3704]
[1727168567431,3.3699,148.38,148.35,3.3704]
[1727168571127,12.6899,148.38,148.34,3.3706]
[1727168571326,12.6899,148.38,148.34,12.6906]
[1727168571528,3.3701,148.37,148.34,9.32]
[1727168572226,3.3701,148.37,148.34,12.6907]
[1727168572424,12.6899,148.38,148.34,9.32]
[1727168573233,12.6899,148.38,148.35,3.3705]
[1727168573436,3.3697,148.39,148.35,3.3705]
[1727168573830,12.6897,148.39,148.35,3.3705]
[1727168574026,3.3699,148.38,148.35,3.3705]
[1727168575234,3.3699,148.38,148.34,12.6907]
[1727168575431,12.6901,148.37,148.33,2.7327]
[1727168575735,12.6901,148.37,148.33,12.0527]
[1727168575940,12.6901,148.37,148.33,15.4235]
[1727168577041,12.6901,148.37,148.34,3.3707]
[1727168580539,9.32,148.39,148.35,3.3704]
[1727168580737,9.32,148.4,148.35,9.32]
[1727168581139,1.3622,148.49,148.38,9.32]
[1727168581442,9.32,148.43,148.39,9.32]
[1727168581641,3.369,148.42,148.39,9.32]
[1727168583531,15.0571261,148.45,148.41,9.32]
[1727168583731,224.0,148.61,148.44,9.32]
[1727168583936,9.32,148.52,148.47,9.32]
[1727168584135,9.32,148.52,148.47,12.6876]
[1727168584136,12.66513214,148.52,148.47,12.6876]
[1727168585838,9.32,148.5,148.42,2.7001]
[1727168586034,3.34513214,148.52,148.42,2.7001]
[1727168586035,9.32,148.49,148.42,2.7001]
[1727168586239,9.32,148.49,148.44,9.32]
[1727168586649,9.32,148.49,148.44,12.6883]
[1727168586844,9.32,148.48,148.42,12.0201]
[1727168587943,3.3678,148.47,148.43,3.3687]
[1727168588534,3.3678,148.47,148.43,12.6887]
[1727168588736,12.6877,148.48,148.43,12.6887]
[1727168588936,9.32,148.48,148.43,12.6887]
[1727168589143,9.32,148.48,148.43,9.32]
[1727168589344,3.368,148.47,148.43,9.32]
[1727168589643,9.32,148.47,148.42,12.0201]
[1727168590049,3.3681,148.46,148.42,12.0201]
[1727168590546,3.3681,148.46,148.38,4.8150849]
[1727168590547,9.32,148.47,148.38,1.4165]
[1727168590746,9.32,148.47,148.41,9.32]
[1727168591338,3.3684,148.45,148.41,12.6891]
[1727168592344,3.3685,148.44,148.41,3.3691]
[1727168592843,3.3685,148.44,148.4,12.6893]
[1727168595643,15.04135912,148.48,148.43,9.32]
[1727168595851,12.64086534,148.51,148.46,9.32]
[1727168596049,3.41353282,148.54,148.5,9.32]
[1727168596244,31.60884186,148.54,148.5,9.32]
[1727168596448,15.03384301,148.53,148.5,9.32]
[1727168596647,3.3667,148.52,148.5,9.32]
[1727168596849,3.3667,148.52,148.49,9.32]
[1727168597044,9.32,148.52,148.47,9.32]
[1727168597242,3.367,148.51,148.48,3.3676]
[1727168597446,3.367,148.51,148.47,9.32]
[1727168597845,3.367,148.51,148.47,12.6876]
[1727168598246,3.367,148.51,148.47,3.3676]
[1727168599449,14.54,148.51,148.46,2.8084]
[1727168599955,3.3672,148.5,148.46,6.1763]
[1727168600357,14.54,148.53,148.46,2.8084]
[1727168601457,3.3669,148.52,148.48,3.3676]
[1727168601660,14.54,148.53,148.48,3.3676]
[1727168601856,14.54,148.53,148.46,2.8084]
[1727168602058,3.3671,148.51,148.47,3.3677]
[1727168603558,3.3672,148.5,148.46,2.8084]
[1727168603955,14.54,148.51,148.44,3.3683]
[1727168604161,14.54,148.51,148.42,17.206]
[1727168604357,3.39610564,148.5,148.42,17.206]
[1727168604562,3.3675,148.49,148.45,3.3683]
[1727168606363,3.3672,148.5,148.46,3.368]
[1727168606563,14.54,148.53,148.44,14.54]
[1727168606762,3.367,148.51,148.47,3.3676]
[1727168607561,17.8960167,148.53,148.48,3.3674]
[1727168607760,17.8960167,148.53,148.44,14.54]
[1727168609066,17.8960167,148.53,148.47,3.3678]
[1727168609067,3.367,148.51,148.47,3.3678]
[1727168610061,3.3666,148.53,148.46,14.54]
[1727168610261,15.9432,148.55,148.46,14.54]
[1727168610467,78.93757903,148.6,148.5,14.54]
[1727168610660,3.3656,148.57,148.53,3.3663]
[1727168610967,14.98573562,148.59,148.5,14.54]
[1727168611269,14.54,148.61,148.52,14.54]
[1727168611566,3.3649,148.6,148.55,3.3658]
[1727168611771,14.54,148.61,148.52,14.54]
[1727168612267,3.3654,148.58,148.52,14.54]
[1727168612467,14.54,148.61,148.5,14.54]
[1727168612869,3.3654,148.58,148.53,3.3663]
[1727168614367,3.3654,148.58,148.54,3.3662]
[1727168615266,3.3654,148.58,148.53,3.3664]
[1727168615773,3.3658,148.56,148.52,3.3665]
[1727168616474,3.3656,148.57,148.5,14.54]
[1727168617465,3.3656,148.57,148.52,3.3665]
[1727168617771,14.54,148.59,148.52,3.3665]
[1727168618167,3.3657,148.57,148.52,3.3665]
[1727168618366,3.3657,148.57,148.53,3.3664]
[1727168618967,3.3658,148.56,148.53,3.3664]
[1727168619162,3.3658,148.56,148.52,3.3666]
[1727168619565,14.54,148.59,148.5,14.54]
[1727168619971,14.54,148.57,148.49,2.5869]
[1727168620170,3.40483566,148.56,148.49,2.5869]
[1727168620380,1.3031,148.63,148.52,14.54]
[1727168620570,14.54,148.6,148.5,14.54]
[1727168621264,3.3657,148.57,148.53,3.3663]
[1727168622466,12.6757,148.57,148.53,12.6763]
[1727168622669,3.3657,148.57,148.53,12.6763]
[1727168623179,3.3658,148.56,148.53,9.31]
[1727168626382,3.3656,148.57,148.53,12.6764]
[1727168626976,12.6754,148.58,148.54,3.366]
[1727168627271,12.6754,148.58,148.54,12.676]
[1727168628179,3.3656,148.57,148.54,12.676]
[1727168628581,9.31,148.59,148.55,3.366]
[1727168629085,9.31,148.59,148.55,9.31]
[1727168629284,1.3031,148.63,148.56,9.31]
[1727168629577,9.31,148.61,148.56,9.31]
[1727168629975,3.3651,148.59,148.57,3.3654]
[1727168630673,3.3653,148.58,148.55,3.3658]
[1727168631878,3.3656,148.57,148.54,3.3661]
[1727168632382,3.3658,148.56,148.53,12.6764]
[1727168632582,9.31,148.58,148.53,9.31]
[1727168632981,9.31,148.58,148.54,9.31]
[1727168633679,3.3656,148.57,148.54,12.6761]
[1727168634082,12.6754,148.58,148.54,12.6761]
[1727168635083,3.3655,148.57,148.54,12.6761]
[1727168636476,3.3658,148.56,148.52,3.3665]
[1727168636682,3.3658,148.56,148.52,12.6765]
[1727168637274,9.31,148.55,148.49,2.5869]
[1727168637471,9.31,148.5,148.38,230.0]
[1727168637785,9.31,148.5,148.46,9.31]
[1727168638083,12.677,148.51,148.46,12.6779]
[1727168640486,3.3674,148.49,148.46,9.31]
[1727168640705,2.6224,148.6,148.46,9.31]
[1727168640888,9.31,148.5,148.46,9.31]
[1727168641087,3.30446732,148.57,148.49,9.31]
[1727168641287,9.31,148.56,148.51,9.31]
[1727168641585,9.31,148.55,148.5,9.31]
[1727168641774,3.3665,148.53,148.5,9.31]
[1727168641979,9.31,148.53,148.49,9.31]
[1727168642376,17.90085419,148.56,148.46,14.56]
[1727168642586,14.56,148.56,148.46,14.56]
[1727168642785,3.3668,148.52,148.48,3.3675]
[1727168643183,3.29403095,148.55,148.46,14.56]
[1727168643387,17.1824,148.6,148.45,3.3681]
[1727168643388,14.56,148.53,148.45,3.3681]
[1727168644288,17.96215897,148.53,148.46,3.368]
[1727168644787,17.96215897,148.53,148.44,17.216]
[1727168645591,3.3673,148.5,148.46,3.368]
[1727168646387,14.56,148.52,148.44,2.656]
[1727168647092,3.28538705,148.51,148.44,6.0243]
[1727168647484,3.3676,148.48,148.44,6.0243]
[1727168647686,14.56,148.52,148.45,3.3682]
[1727168648089,3.3674,148.49,148.45,3.3682]
[1727168648292,3.3674,148.49,148.46,3.368]
[1727168650285,3.367,148.51,148.44,17.216]
[1727168650490,14.56,148.56,148.46,14.56]
[1727168651193,3.3668,148.52,148.46,14.56]
[1727168652087,3.3668,148.52,148.48,3.3674]
[1727168653883,14.56,148.54,148.46,3.3679]
[1727168654191,14.56,148.54,148.44,17.216]
[1727168654588,3.3671,148.51,148.44,17.216]
[1727168654795,17.84942936,148.54,148.46,14.56]
[1727168655287,3.28942936,148.54,148.5,3.3671]
[1727168655497,14.56,148.57,148.5,3.3671]